fUST/lending_fUST_20250108
["ID","MTS","AMOUNT","RATE_DAILY","PERIOD"]
[348121979,1736337047931,-500.0,0.00022001,3]
[348121980,1736337047940,-1225.5,0.00022002,3]
[348121981,1736337047950,-730.22,0.00022002,3]
[348121982,1736337047959,-500.0,0.00022002,3]
[348121983,1736337047968,-500.0,0.00022002,3]
[348121984,1736337047978,-500.0,0.00022004,3]
[348121985,1736337047987,-500.0,0.00022004,2]
[348121986,1736337047996,-1785.3,0.00022004,3]
[348121987,1736337048006,-151.0,0.00022004,7]
[348121988,1736337048015,-151.0,0.00022004,7]
[348121989,1736337048025,-249.017316,0.00022004,7]
[348121990,1736337048034,-249.017316,0.00022004,7]
[348121991,1736337048043,-8110.88232917,0.00022038,2]
[348121992,1736337048053,-151.0,0.00022038,7]
[348121993,1736337048062,-151.0,0.00022038,7]
[348121994,1736337048071,-247.670904,0.00022038,7]
[348121995,1736337048081,-1431.335716,0.00022038,7]
[348121996,1736337048091,-1431.335716,0.00022038,7]
[348121997,1736337048100,-150.0,0.00022038,2]
[348121998,1736337048109,-536.849,0.00022038,2]
[348121999,1736337048118,-2081.0,0.00022038,2]
[348122000,1736337048127,-2318.0,0.00022038,2]
[348122001,1736337048137,-396.492,0.00022038,2]
[348122002,1736337048146,-151.089,0.00022038,2]
[348122003,1736337048155,-428.88968746,0.00022073,2]
[348122004,1736337048164,-500.0,0.00022073,2]
[348122005,1736337048173,-500.0,0.00022073,2]
[348122006,1736337048182,-266.59125971,0.00022073,2]
[348122007,1736337048192,-500.0,0.00022073,2]
[348122008,1736337048201,-500.0,0.00022073,2]
[348122009,1736337048211,-500.0,0.00022073,2]
[348122010,1736337048221,-500.0,0.00022073,2]
[348122011,1736337048230,-500.0,0.00022073,2]
[348122012,1736337048239,-1668.1857619,0.00022094,7]
[348122013,1736337048248,-261912.59017216,0.00022097,7]
[348122014,1736337048261,-7403.10253949,0.00022097,7]
[348122015,1736337048272,-29489.08000002,0.00022097,7]
[348122019,1736337628131,168.054769,0.00013973,2]
[348122020,1736338028107,-300.0,0.00017507,2]
[348122021,1736338028130,-514.1002522,0.00017669,2]
[348122022,1736338028151,-300.0,0.00017684,2]
[348122023,1736338028175,-300.0,0.00017863,2]
[348122024,1736338028197,-6817.44174196,0.00017863,2]
[348122025,1736338036092,-1233.55825804,0.00017863,2]
[348122026,1736338036113,-2490.57573569,0.00017864,2]
[348122027,1736338039093,-13808.71114697,0.00017864,2]
[348122028,1736338040122,-736.10264917,0.00017864,2]
[348122029,1736338051131,-1065.93196326,0.00017685,2]
[348122030,1736338151165,-5426.53774899,0.00017508,2]
[348122031,1736338151189,-300.0,0.00017684,2]
[348122032,1736338151211,-6798.67850491,0.00017685,2]
[348122033,1736338151233,-250.0,0.00017815,2]
[348122034,1736338151254,-7864.61046817,0.00017864,2]
[348122035,1736338151275,-241.184537,0.00017917,2]
[348122036,1736338151297,-396.313176,0.00018153,2]
[348122037,1736338151319,-302.8183302,0.00019,2]
[348122038,1736338151340,-188.476,0.00019019,2]
[348122039,1736338151481,-1006.1385178,0.00019078,2]
[348122040,1736338151504,-500.0,0.00019173,2]
[348122041,1736338151526,-500.0,0.00019173,2]
[348122042,1736338151550,-500.0,0.00019173,2]
[348122043,1736338151573,-499.0,0.00019177,2]
[348122044,1736338151596,-500.0,0.00019177,2]
[348122045,1736338151619,-500.0,0.00019177,2]
[348122046,1736338151641,-500.0,0.00019177,2]
[348122047,1736338151663,-500.0,0.00019177,2]
[348122048,1736338151687,-500.0,0.00019177,2]
[348122049,1736338151709,-500.0,0.00019177,2]
[348122050,1736338151732,-500.0,0.00019177,2]
[348122051,1736338151753,-500.0,0.00019177,2]
[348122052,1736338151775,-474.09431323,0.00019177,2]
[348122053,1736338151798,-562.16664779,0.00019177,2]
[348122054,1736338151820,-500.0,0.00019177,2]
[348122055,1736338151843,-500.0,0.00019177,2]
[348122056,1736338151864,-500.0,0.00019177,2]
[348122057,1736338151887,-554.68182416,0.00019177,2]
[348122058,1736338151909,-265.0,0.00019177,2]
[348122059,1736338151930,-500.0,0.00019177,2]
[348122060,1736338151953,-500.0,0.00019177,2]
[348122061,1736338151976,-500.0,0.00019177,2]
[348122062,1736338151999,-500.0,0.00019177,2]
[348122063,1736338152021,-500.0,0.00019177,2]
[348122064,1736338152041,-500.0,0.00019177,2]
[348122065,1736338152064,-500.0,0.00019177,2]
[348122066,1736338152087,-500.0,0.00019177,2]
[348122067,1736338152110,-500.0,0.00019177,2]
[348122068,1736338152131,-500.0,0.00019177,2]
[348122069,1736338152153,-500.0,0.00019177,2]
[348122070,1736338152175,-500.0,0.00019177,2]
[348122071,1736338152195,-500.0,0.00019177,2]
[348122072,1736338152218,-500.0,0.00019177,2]
[348122073,1736338152238,-418.44435379,0.00019177,2]
[348122074,1736338152260,-500.0,0.00019177,2]
[348122075,1736338152283,-500.0,0.00019177,2]
[348122076,1736338152303,-500.0,0.00019177,2]
[348122077,1736338152325,-500.0,0.00019177,2]
[348122078,1736338152345,-500.0,0.00019177,2]
[348122079,1736338152367,-500.0,0.00019177,2]
[348122080,1736338152388,-236.52116316,0.00019178,2]
[348122081,1736338152409,-500.0,0.00019178,2]
[348122082,1736338152430,-500.0,0.00019178,2]
[348122083,1736338152451,-506.76393999,0.00019178,2]
[348122084,1736338152472,-500.0,0.00019178,2]
[348122085,1736338152492,-501.41694209,0.00019178,2]
[348122086,1736338152512,-305.45644791,0.00019178,2]
[348122087,1736338152534,-500.0,0.00019178,2]
[348122088,1736338152554,-500.0,0.00019178,2]
[348122089,1736338152575,-612.28227195,0.00019178,2]
[348122090,1736338152595,-500.0,0.00019178,2]
[348122091,1736338152616,-500.0,0.00019178,2]
[348122092,1736338152641,-500.0,0.00019178,2]
[348122093,1736338152664,-500.78642165,0.00019178,2]
[348122094,1736338152688,-500.0,0.00019178,2]
[348122095,1736338152710,-500.0,0.00019178,2]
[348122096,1736338152732,-500.0,0.00019178,2]
[348122097,1736338152753,-500.0,0.00019178,2]
[348122098,1736338152773,-411.23492835,0.00019178,2]
[348122099,1736338152795,-500.82738551,0.00019178,2]
[348122100,1736338152820,-491.91640805,0.00019178,2]
[348122101,1736338152840,-500.0,0.00019178,2]
[348122102,1736338152861,-500.0,0.00019178,2]
[348122103,1736338152883,-504.25188924,0.00019178,2]
[348122104,1736338152904,-500.0,0.00019178,2]
[348122105,1736338152925,-500.0,0.00019178,2]
[348122106,1736338152946,-500.0,0.00019178,2]
[348122107,1736338152967,-464.36993295,0.00019178,2]
[348122108,1736338152987,-613.55,0.00019178,2]
[348122109,1736338153008,-500.0,0.00019178,2]
[348122110,1736338153029,-500.0,0.00019178,2]
[348122111,1736338153050,-500.0,0.00019178,2]
[348122112,1736338153070,-500.0,0.00019178,2]
[348122113,1736338153091,-500.0,0.00019178,2]
[348122114,1736338153112,-500.0,0.00019178,2]
[348122115,1736338153133,-556.42,0.00019178,2]
[348122116,1736338153154,-500.0,0.00019178,2]
[348122117,1736338153174,-500.0,0.00019178,2]
[348122118,1736338153196,-500.0,0.00019178,2]
[348122119,1736338153216,-500.8198669,0.00019178,2]
[348122120,1736338153236,-523.22937153,0.00019178,2]
[348122121,1736338153257,-500.0,0.00019178,2]
[348122122,1736338153276,-500.0,0.00019178,2]
[348122123,1736338153299,-500.0,0.00019178,2]
[348122124,1736338153319,-500.0,0.00019178,2]
[348122125,1736338153339,-500.0,0.00019178,2]
[348122126,1736338153359,-421.41135891,0.00019178,2]
[348122127,1736338153383,-500.0,0.00019178,2]
[348122128,1736338153405,-565.9,0.00019178,2]
[348122129,1736338153426,-500.0,0.00019178,2]
[348122130,1736338153447,-500.0,0.00019178,2]
[348122131,1736338153467,-500.0,0.00019178,2]
[348122132,1736338153489,-503.51060054,0.00019178,2]
[348122133,1736338153511,-500.0,0.00019178,2]
[348122134,1736338153535,-500.0,0.00019178,2]
[348122135,1736338153557,-500.86319584,0.00019178,2]
[348122136,1736338153580,-500.0,0.00019178,2]
[348122137,1736338153603,-500.0,0.00019178,2]
[348122138,1736338153626,-1039.52,0.00019178,2]
[348122139,1736338153647,-500.0,0.00019178,2]
[348122140,1736338153668,-613.27098099,0.00019178,2]
[348122141,1736338153689,-500.0,0.00019178,2]
[348122142,1736338153710,-500.0,0.00019178,2]
[348122143,1736338153731,-500.0,0.00019178,2]
[348122144,1736338153752,-500.0,0.00019178,2]
[348122145,1736338153775,-500.0,0.00019178,2]
[348122146,1736338153796,-501.69174417,0.00019178,2]
[348122147,1736338153817,-367.41468256,0.00019178,2]
[348122148,1736338153837,-273.42357608,0.00019178,2]
[348122149,1736338153859,-500.0,0.00019178,2]
[348122150,1736338153880,-231.67979924,0.00019178,2]
[348122151,1736338153901,-502.49008051,0.00019178,2]
[348122152,1736338153922,-500.0,0.00019178,2]
[348122153,1736338153944,-500.0,0.00019178,2]
[348122154,1736338153964,-500.0,0.00019178,2]
[348122155,1736338153985,-500.0,0.00019178,2]
[348122156,1736338154087,-502.01368748,0.00019178,2]
[348122157,1736338154113,-507.44182289,0.00019178,2]
[348122158,1736338154136,-500.0,0.00019178,2]
[348122159,1736338154157,-500.0,0.00019178,2]
[348122160,1736338154178,-500.0,0.00019178,2]
[348122161,1736338154199,-500.0,0.00019178,2]
[348122162,1736338154220,-500.0,0.00019178,2]
[348122163,1736338154240,-500.0,0.00019178,2]
[348122164,1736338154260,-500.0,0.00019178,2]
[348122165,1736338154281,-221.01352326,0.00019178,2]
[348122166,1736338154302,-500.0,0.00019178,2]
[348122167,1736338154321,-500.0,0.00019178,2]
[348122168,1736338154342,-500.0,0.00019178,2]
[348122169,1736338154363,-500.0,0.00019178,2]
[348122170,1736338154385,-500.0,0.00019178,2]
[348122171,1736338154406,-500.0,0.00019178,2]
[348122172,1736338154427,-500.0,0.00019178,2]
[348122173,1736338154448,-500.0,0.00019178,2]
[348122174,1736338154468,-500.0,0.00019178,2]
[348122175,1736338154489,-500.0,0.00019178,2]
[348122176,1736338154511,-589.72,0.00019178,2]
[348122177,1736338154534,-500.0,0.00019178,2]
[348122178,1736338154556,-506.57616347,0.00019178,2]
[348122179,1736338154578,-650.66,0.00019178,2]
[348122180,1736338154600,-500.0,0.00019178,2]
[348122181,1736338154623,-500.0,0.00019178,2]
[348122182,1736338154649,-500.0,0.00019178,2]
[348122183,1736338154671,-500.0,0.00019178,2]
[348122184,1736338154694,-500.0,0.00019178,2]
[348122185,1736338154717,-500.0,0.00019178,2]
[348122186,1736338154738,-515.26264991,0.00019178,2]
[348122187,1736338154759,-500.0,0.00019178,2]
[348122188,1736338154781,-624.37589179,0.00019178,2]
[348122189,1736338154804,-500.0,0.00019178,2]
[348122190,1736338154825,-500.0,0.00019178,2]
[348122191,1736338154846,-503.53697668,0.00019178,2]
[348122192,1736338154868,-500.0,0.00019178,2]
[348122193,1736338154889,-500.0,0.00019178,2]
[348122194,1736338154911,-500.0,0.00019178,2]
[348122195,1736338154933,-500.0,0.00019178,2]
[348122196,1736338154955,-500.0,0.00019178,2]
[348122197,1736338154975,-502.33396852,0.00019178,2]
[348122198,1736338154997,-348.61033022,0.00019178,2]
[348122199,1736338155020,-500.0,0.00019178,2]
[348122200,1736338155042,-500.0,0.00019178,2]
[348122201,1736338155063,-500.0,0.00019178,2]
[348122202,1736338155086,-502.98263348,0.00019178,2]
[348122203,1736338155108,-500.0,0.00019178,2]
[348122204,1736338155132,-500.0,0.00019178,2]
[348122205,1736338155153,-590.40936749,0.00019178,2]
[348122206,1736338155174,-500.0,0.00019178,2]
[348122207,1736338155195,-500.0,0.00019178,2]
[348122208,1736338155216,-500.0,0.00019178,2]
[348122209,1736338155238,-500.0,0.00019178,2]
[348122210,1736338155258,-503.45019622,0.00019178,2]
[348122211,1736338155279,-500.0,0.00019178,2]
[348122212,1736338155302,-500.0,0.00019178,2]
[348122213,1736338155322,-500.0,0.00019178,2]
[348122214,1736338155342,-503.40592493,0.00019178,2]
[348122215,1736338155362,-501.74571841,0.00019178,2]
[348122216,1736338155386,-500.0,0.00019178,2]
[348122217,1736338155407,-500.0,0.00019178,2]
[348122218,1736338155427,-601.79834697,0.00019178,2]
[348122219,1736338155450,-500.0,0.00019178,2]
[348122220,1736338155471,-500.0,0.00019178,2]
[348122221,1736338155491,-506.47532817,0.00019178,2]
[348122222,1736338155512,-500.0,0.00019178,2]
[348122223,1736338155535,-503.33007149,0.00019178,2]
[348122224,1736338155556,-503.31103708,0.00019178,2]
[348122225,1736338155579,-500.0,0.00019178,2]
[348122226,1736338155601,-500.0,0.00019178,2]
[348122227,1736338155622,-524.16449791,0.00019178,2]
[348122228,1736338155642,-500.0,0.00019178,2]
[348122229,1736338155665,-500.0,0.00019178,2]
[348122230,1736338155686,-616.31724552,0.00019178,2]
[348122231,1736338155708,-502.90299173,0.00019178,2]
[348122232,1736338155729,-500.0,0.00019178,2]
[348122233,1736338155751,-500.0,0.00019178,2]
[348122234,1736338155771,-500.0,0.00019178,2]
[348122235,1736338155794,-250.03903956,0.00019178,2]
[348122236,1736338155815,-502.52728249,0.00019178,2]
[348122237,1736338155836,-500.0,0.00019178,2]
[348122238,1736338155858,-6807.6,0.00019178,2]
[348122239,1736338155878,-500.0,0.00019178,2]
[348122240,1736338155900,-500.0,0.00019178,2]
[348122241,1736338155922,-602.07082985,0.00019178,2]
[348122242,1736338155944,-500.0,0.00019178,2]
[348122243,1736338155965,-500.0,0.00019178,2]
[348122244,1736338155990,-505.83177727,0.00019178,2]
[348122245,1736338156011,-500.0,0.00019178,2]
[348122246,1736338156034,-500.0,0.00019178,2]
[348122247,1736338156054,-503.48727912,0.00019178,2]
[348122248,1736338156074,-500.0,0.00019178,2]
[348122249,1736338156096,-500.0,0.00019178,2]
[348122250,1736338156119,-500.0,0.00019178,2]
[348122251,1736338156140,-500.0,0.00019178,2]
[348122252,1736338156164,-500.0,0.00019178,2]
[348122253,1736338156190,-500.0,0.00019178,2]
[348122254,1736338156211,-506.8537545,0.00019178,2]
[348122255,1736338156232,-500.0,0.00019178,2]
[348122256,1736338156255,-500.0,0.00019178,2]
[348122257,1736338156277,-500.0,0.00019178,2]
[348122258,1736338156303,-500.0,0.00019178,2]
[348122259,1736338156323,-500.0,0.00019178,5]
[348122260,1736338156347,-500.0,0.00019178,2]
[348122261,1736338156370,-500.0,0.00019178,2]
[348122262,1736338156394,-500.0,0.00019178,2]
[348122263,1736338156415,-500.0,0.00019178,2]
[348122264,1736338156437,-500.0,0.00019178,2]
[348122265,1736338156459,-500.0,0.00019178,2]
[348122266,1736338156481,-500.0,0.00019178,2]
[348122267,1736338156503,-165.165787,0.00019178,2]
[348122268,1736338156524,-302.8183302,0.0001919,2]
[348122269,1736338156633,-420.0,0.00019301,2]
[348122270,1736338156659,-364.57350627,0.0001938,2]
[348122271,1736338156682,-506.50101696,0.00019406,3]
[348122272,1736338156704,-500.0,0.00019406,3]
[348122273,1736338156727,-500.0,0.00019452,3]
[348122274,1736338156749,-500.0,0.00019452,3]
[348122275,1736338156770,-500.0,0.00019452,3]
[348122276,1736338156791,-500.0,0.00019452,3]
[348122277,1736338156813,-288.04714541,0.00019452,3]
[348122278,1736338156835,-1039.52,0.00019452,3]
[348122279,1736338156857,-500.0,0.00019452,3]
[348122280,1736338156879,-500.0,0.00019452,3]
[348122281,1736338156900,-650.66,0.00019452,3]
[348122282,1736338156922,-500.0,0.00019452,3]
[348122283,1736338156944,-500.0,0.00019452,3]
[348122284,1736338156965,-500.0,0.00019452,3]
[348122285,1736338156987,-500.0,0.00019452,3]
[348122286,1736338157008,-306.21172322,0.00019452,3]
[348122287,1736338157029,-500.0,0.00019452,3]
[348122288,1736338157052,-500.0,0.00019452,3]
[348122289,1736338157073,-500.0,0.00019452,3]
[348122290,1736338157094,-500.0,0.00019452,3]
[348122291,1736338157116,-500.0,0.00019452,3]
[348122292,1736338157137,-500.0,0.00019452,3]
[348122293,1736338157159,-508.98104737,0.00019452,3]
[348122294,1736338157182,-500.0,0.00019452,3]
[348122295,1736338157204,-500.0,0.00019452,3]
[348122296,1736338157225,-500.0,0.00019452,3]
[348122297,1736338157246,-500.0,0.00019452,3]
[348122298,1736338157267,-500.0,0.00019452,3]
[348122299,1736338157291,-6807.6,0.00019452,3]
[348122300,1736338157313,-500.0,0.00019452,3]
[348122301,1736338157336,-500.0,0.00019452,3]
[348122302,1736338157359,-500.0,0.00019452,3]
[348122303,1736338157384,-500.0,0.00019452,3]
[348122304,1736338157407,-500.0,0.00019452,3]
[348122305,1736338157429,-352.84,0.00019452,3]
[348122306,1736338157450,-500.0,0.00019452,3]
[348122307,1736338157471,-500.0,0.00019452,3]
[348122308,1736338157492,-500.0,0.00019452,3]
[348122309,1736338157513,-500.0,0.00019452,3]
[348122310,1736338157535,-500.0,0.00019452,3]
[348122311,1736338157555,-1006.13851773,0.00019652,2]
[348122312,1736338157577,-1000.0,0.00019721,2]
[348122313,1736338157598,-1000.0,0.00019721,2]
[348122314,1736338157620,-385.02,0.00019726,3]
[348122315,1736338157646,-1039.52,0.00019726,3]
[348122316,1736338157669,-351.19,0.00019726,3]
[348122317,1736338157691,-500.0,0.00019726,3]
[348122318,1736338157712,-650.66,0.00019726,3]
[348122319,1736338157735,-500.0,0.00019726,3]
[348122320,1736338157757,-500.0,0.00019726,3]
[348122321,1736338157778,-500.0,0.00019726,3]
[348122322,1736338157801,-628.6,0.00019726,3]
[348122323,1736338157823,-500.0,0.00019726,3]
[348122324,1736338157844,-6807.6,0.00019726,3]
[348122325,1736338157866,-500.0,0.00019726,3]
[348122326,1736338157888,-310.04,0.00019726,3]
[348122327,1736338157909,-500.0,0.00019726,3]
[348122328,1736338157931,-500.0,0.00019726,3]
[348122329,1736338157950,-249.66117748,0.0001986,2]
[348122330,1736338157970,-591.82472898,0.000199,2]
[348122331,1736338157991,-4941.70630478,0.000199,2]
[348122332,1736338158011,-1306.78558544,0.00019997,2]
[348122333,1736338158033,-424.17157994,0.00019999,2]
[348122334,1736338158057,-13232.11904764,0.0002,5]
[348122335,1736338158078,-30504.84953049,0.0002,5]
[348122336,1736338158103,-2647.0,0.0002,2]
[348122337,1736338158125,-1039.52,0.0002,3]
[348122338,1736338158150,-49754.81475539,0.0002,5]
[348122339,1736338161103,-163.59226919,0.00018981,2]
[348122340,1736338161124,-163.59226919,0.00019173,2]
[348122341,1736338161146,-500.0,0.00019178,2]
[348122342,1736338161166,-500.0,0.00019452,3]
[348122343,1736338161186,-439.58,0.00019726,3]
[348122344,1736338161208,-20534.12176013,0.0002,5]
[348122345,1736338162119,-162423.5106662,0.0002,5]
[348122346,1736338166078,-6616.05952383,0.0002,5]
[348122347,1736338166102,-124786.68896157,0.0002,5]
[348122348,1736338166132,-1677.18966716,0.0002,5]
[348122349,1736338169170,-15252.42476525,0.0002,5]
[348122350,1736338169195,-348157.18426994,0.0002,5]
[348122351,1736338170180,-136412.32761043,0.0002,5]
[348122394,1736338232261,-1144.21469284,0.00018711,2]
[348122396,1736338232271,-1144.21469284,0.000189,2]
[348122398,1736338232281,-500.0,0.00019173,2]
[348122400,1736338232290,-500.0,0.00019173,2]
[348122402,1736338232300,-236.83683249,0.00019178,2]
[348122404,1736338232309,-500.0,0.00019178,2]
[348122406,1736338232318,-500.0,0.00019178,2]
[348122409,1736338232328,-164.0377237,0.00019178,2]
[348122410,1736338232338,-500.0,0.00019452,3]
[348122413,1736338232348,-943.18766825,0.00019721,2]
[348122415,1736338232357,-817.15496023,0.00019721,2]
[348122417,1736338232367,-473.48,0.00019726,3]
[348122419,1736338232376,-300.0,0.00019972,2]
[348122421,1736338232385,-500.0,0.00019973,2]
[348122423,1736338232396,-500.0,0.00019973,2]
[348122425,1736338232405,-500.0,0.00019973,2]
[348122427,1736338232414,-500.38183265,0.00019973,2]
[348122428,1736338232425,-500.0,0.00019973,2]
[348122430,1736338232434,-500.0,0.00019973,2]
[348122432,1736338232444,-500.0,0.00019973,2]
[348122434,1736338232453,-500.0,0.00019973,2]
[348122437,1736338232463,-500.0,0.00019973,2]
[348122439,1736338232473,-54356.79159698,0.0002,5]
[348122441,1736338232485,-289.836,0.0002,5]
[348122443,1736338232496,-426.374,0.0002,5]
[348122619,1736338238381,-500.0,0.00019999,2]
[348122620,1736338238391,-585.0,0.00019999,2]
[348122621,1736338238401,-500.0,0.00019999,2]
[348122622,1736338238411,-413.44594703,0.00019999,2]
[348122623,1736338238421,-268.71603931,0.00019999,2]
[348122624,1736338238431,-394.96464713,0.00019999,2]
[348122625,1736338238441,-40897.63018594,0.0002,5]
[348122626,1736338238453,-9068.40191776,0.0002,5]
[348122627,1736338238582,-7331.40768153,0.0002,5]
[348122628,1736338238976,-1409.56702392,0.0002,5]
[348122677,1736338239912,-2273.84025295,0.0002,5]
[348122679,1736338239924,-3276.69999998,0.0002,5]
[348122684,1736338239966,-3302.47134826,0.0002,5]
[348122847,1736338242843,-1202.73336733,0.0002,5]
[348122848,1736338242860,-5207.41074273,0.0002,5]
[348122849,1736338242899,-668.42500436,0.00019799,2]
[348122850,1736338242954,-908.70162911,0.00019799,2]
[348122851,1736338242964,-22862.01995489,0.0002,5]
[348122852,1736338242976,-2538.39789041,0.0002,5]
[348122860,1736338245929,-500.0,0.00019178,2]
[348122861,1736338245940,-500.0,0.00019178,2]
[348122862,1736338245949,-500.0,0.00019452,3]
[348122863,1736338245959,-181.96,0.00019452,3]
[348122864,1736338245970,-500.0,0.00019726,3]
[348122865,1736338245979,-11650.25248,0.0002,5]
[348122866,1736338245991,-33627.99415882,0.0002,5]
[348122867,1736338246002,-16322.69560229,0.0002,5]
[348122868,1736338246035,-1534.30123855,0.0002,5]
[348122869,1736338327803,1055.52363143,0.00014999,2]
[348122870,1736338328097,1055.52363143,0.00015,2]
[348122871,1736338328390,1055.52363143,0.00014989,2]
[348122872,1736338507351,167.480343,0.00013973,2]
[348122873,1736338992379,10000.0,0.00015002,30]
[348122874,1736339007845,4857.865,0.00015002,30]
[348122875,1736339153161,-360.577183,0.00016384,2]
[348122876,1736339153185,-557.8557456,0.00016747,2]
[348122877,1736339153208,-557.8557456,0.00016916,2]
[348122878,1736339153230,-241.80981779,0.00016987,2]
[348122879,1736339153253,-500.0,0.00017073,2]
[348122880,1736339153275,-500.0,0.00017073,2]
[348122881,1736339153434,-265.19047943,0.00017073,2]
[348122882,1736339231146,-150.0,0.00015959,2]
[348122883,1736339231168,-186.9956367,0.00016121,2]
[348122884,1736339231191,-234.80952057,0.00016902,2]
[348122885,1736339231213,-300.0,0.00017072,2]
[348122886,1736339231235,-8252.70646442,0.00017072,2]
[348122887,1736339234104,-861.68369156,0.00017072,2]
[348122888,1736339244093,-944.12724636,0.00016973,2]
[348122889,1736339244115,-1469.39262378,0.00017072,2]
[348122890,1736339245114,-448.99069688,0.00016803,2]
[348122894,1736339351132,-373.10779508,0.00016,2]
[348122895,1736339355105,-7281.23480504,0.00016,2]
[348122896,1736339355127,-2027.53588296,0.00016026,2]
[348122897,1736339355262,-22872.46411704,0.00016026,2]
[348122898,1736339355284,-495.13654948,0.00016803,2]
[348122899,1736339355306,-65783.0,0.00016971,2]
[348122900,1736339355327,-7447.18769903,0.00016972,2]
[348122901,1736339355347,-161.2065452,0.00016973,2]
[348122902,1736339355367,-218.23723615,0.00017073,2]
[348122903,1736339355388,-501.76048107,0.00017073,2]
[348122904,1736339355408,-500.0,0.00017073,2]
[348122905,1736339355430,-640.7448293,0.00017085,2]
[348122906,1736339355450,-406.12740064,0.00017085,2]
[348122907,1736339355473,-500.0,0.00017085,2]
[348122908,1736339355496,-500.0,0.00017085,2]
[348122909,1736339355523,-500.0,0.00017085,2]
[348122910,1736339355545,-500.0,0.00017085,2]
[348122911,1736339355570,-469.49340027,0.00017085,2]
[348122912,1736339355595,-500.0,0.00017085,2]
[348122913,1736339355618,-374.94206777,0.00017085,2]
[348122914,1736339355643,-500.0,0.00017085,2]
[348122915,1736339355667,-500.0,0.00017085,2]
[348122916,1736339355691,-500.0,0.00017085,2]
[348122917,1736339355713,-500.0,0.00017085,2]
[348122918,1736339355736,-500.0,0.00017085,2]
[348122919,1736339355759,-500.0,0.00017085,2]
[348122920,1736339355782,-500.0,0.00017085,2]
[348122921,1736339355806,-500.0,0.00017085,2]
[348122922,1736339355829,-500.0,0.00017085,2]
[348122923,1736339355853,-500.0,0.00017085,2]
[348122924,1736339355877,-478.23776724,0.00017085,2]
[348122925,1736339355899,-500.0,0.00017085,2]
[348122926,1736339355922,-500.0,0.00017085,2]
[348122927,1736339355945,-500.0,0.00017085,2]
[348122928,1736339355967,-500.0,0.00017085,2]
[348122929,1736339355989,-500.0,0.00017085,2]
[348122930,1736339356011,-500.0,0.00017085,2]
[348122931,1736339356033,-500.0,0.00017085,2]
[348122932,1736339356055,-500.0,0.00017085,2]
[348122933,1736339356081,-500.0,0.00017085,2]
[348122934,1736339356104,-500.0,0.00017085,2]
[348122935,1736339356125,-500.0,0.00017085,2]
[348122936,1736339356150,-500.0,0.00017085,2]
[348122937,1736339356173,-500.0,0.00017085,2]
[348122938,1736339356195,-500.0,0.00017085,2]
[348122939,1736339356217,-500.0,0.00017085,2]
[348122940,1736339356241,-500.0,0.00017085,2]
[348122941,1736339356263,-500.0,0.00017085,2]
[348122942,1736339356286,-500.0,0.00017085,2]
[348122943,1736339356315,-500.0,0.00017085,2]
[348122944,1736339356346,-500.0,0.00017085,2]
[348122945,1736339356374,-500.0,0.00017085,2]
[348122946,1736339356402,-500.0,0.00017085,2]
[348122947,1736339356432,-500.0,0.00017085,2]
[348122948,1736339356461,-500.0,0.00017085,2]